fUST/lending_fUST_20260116
["ID","MTS","AMOUNT","RATE_DAILY","PERIOD"]
[402125032,1768531852631,-500.0,0.00022192,5]
[402125035,1768531852640,-191.16852489,0.00022198,94]
[402125037,1768531852650,-7939.27269167,0.00022203,2]
[402125039,1768531852660,-4288.2876741,0.00022207,2]
[402125041,1768531852669,-454.0036719,0.00022207,2]
[402125043,1768531852679,-1529.34819918,0.00022213,98]
[402125045,1768531852688,-826.64474816,0.0002226,30]
[402125047,1768531852698,-9221.1641186,0.00022269,2]
[402125049,1768531852708,-160.04,0.000223,7]
[402125051,1768531852717,-522.96332519,0.00022301,102]
[402125053,1768531852727,-1504.104065,0.00022386,2]
[402125055,1768531852736,-417.48449203,0.00022399,98]
[402125057,1768531852746,-604.65152612,0.000224,2]
[402125059,1768531852755,-194.72988038,0.00022411,7]
[402125061,1768531852765,-3000.0,0.00022411,7]
[402125063,1768531852775,-728.0,0.00022443,2]
[402125065,1768531852784,-500.0,0.00022465,2]
[402125067,1768531852794,-524.13,0.00022465,2]
[402125069,1768531852804,-500.0,0.00022466,5]
[402125071,1768531852813,-300.0,0.00022466,2]
[402125073,1768531852822,-200.0,0.00022466,2]
[402125075,1768531852832,-250.0,0.00022466,2]
[402125077,1768531852842,-228.89186531,0.00022468,3]
[402125079,1768531852851,-163.0,0.000225,10]
[402125081,1768531852861,-2406.72,0.000225,7]
[402125083,1768531852870,-521.11083841,0.00022517,29]
[402125085,1768531852879,-1529.34819918,0.00022552,102]
[402125087,1768531852889,-475.0,0.00022562,7]
[402125089,1768531852899,-475.0,0.00022562,7]
[402125091,1768531852909,-475.0,0.00022598,7]
[402125093,1768531852919,-475.0,0.00022598,7]
[402125096,1768531852930,-475.0,0.00022648,7]
[402125098,1768531852943,-475.0,0.00022648,7]
[402125100,1768531852954,-475.0,0.00022648,7]
[402125101,1768531852964,-475.0,0.00022648,7]
[402125104,1768531852975,-2000.0,0.00022664,7]
[402125106,1768531852986,-417.48449203,0.00022676,102]
[402125108,1768531852996,-2.59461834,0.00022702,120]
[402125109,1768531853011,-475.0,0.0002272,7]
[402125111,1768531853029,-475.0,0.0002272,7]
[402125113,1768531853039,-475.0,0.0002272,7]
[402125115,1768531853049,-475.0,0.00022739,7]
[402125117,1768531853059,-500.0,0.00022739,2]
[402125119,1768531853069,-524.13,0.00022739,2]
[402125121,1768531853078,-500.0,0.0002274,5]
[402125123,1768531853089,-162.27490032,0.0002274,7]
[402125125,1768531853098,-341.97823551,0.00022831,110]
[402125127,1768531853108,-1529.34819918,0.00022891,106]
[402125129,1768531853120,-192.2,0.000229,7]
[402125131,1768531853129,-3038.76,0.000229,14]
[402125133,1768531853139,-183.0,0.00022932,8]
[402125135,1768531853149,-417.48449203,0.00022953,106]
[402125137,1768531853158,-194.246702,0.00022978,2]
[402125139,1768531853169,-20000.0,0.00023,7]
[402125141,1768531853179,-39123.0,0.00023,2]
[402125143,1768531853189,-215.0,0.00023,15]
[402125145,1768531853198,-221.0,0.00023,7]
[402125147,1768531853208,-2406.72,0.00023,7]
[402125150,1768531853218,-10000.0,0.00023,2]
[402125152,1768531853228,-17119.78,0.00023,2]
[402125154,1768531853238,-1041.66666667,0.00023,3]
[402125155,1768531853248,-9683.70525401,0.00023006,2]
[402125158,1768531853257,-500.0,0.00023013,2]
[402125160,1768531853268,-524.13,0.00023013,2]
[402125162,1768531853277,-500.0,0.00023014,5]
[402125164,1768531853286,-450.0,0.00023014,2]
[402125166,1768531853296,-261.16480415,0.00023014,2]
[402125167,1768531853306,-350.0,0.00023014,2]
[402125169,1768531853315,-521.11083841,0.00023052,30]
[402125171,1768531853325,-231.26,0.000231,7]
[402125174,1768531853335,-200.0,0.00023199,30]
[402125175,1768531853346,-200.0,0.00023199,30]
[402125177,1768531853355,-200.0,0.00023199,30]
[402125179,1768531853365,-417.48449203,0.0002323,110]
[402125181,1768531853374,-500.0,0.00023287,2]
[402125183,1768531853385,-524.13,0.00023287,2]
[402125185,1768531853394,-500.0,0.00023288,5]
[402125187,1768531853404,-160.04,0.000233,7]
[402125189,1768531853413,-163.638394,0.0002338,2]
[402125191,1768531853424,-616.514048,0.0002338,2]
[402125193,1768531853434,-616.514048,0.0002338,2]
[402125195,1768531853444,-616.514048,0.0002338,2]
[402125198,1768531853455,-616.514057,0.0002338,2]
[402125200,1768531853465,-157.966991,0.0002338,2]
[402125201,1768531853475,-275.8274,0.0002338,2]
[402125203,1768531853485,-703.9166072,0.00023437,2]
[402125205,1768531853495,-2000.0,0.00023479,7]
[402125208,1768531853506,-157.15858,0.0002348,2]
[402125210,1768531853515,-306.0,0.00023485,2]
[402125212,1768531853525,-20000.0,0.000235,7]
[402125214,1768531853535,-2406.72,0.000235,7]
[402125216,1768531853545,-2045.74207582,0.00023507,7]
[402125277,1768531854178,-291.300155,0.00023507,7]
[402125279,1768531854190,-662.95776918,0.00023507,7]
[402125281,1768531854199,-166.07953479,0.00023527,94]
[402125283,1768531854210,-121.27896618,0.00023527,94]
[402125285,1768531854219,-294.09019724,0.00023561,2]
[402125287,1768531854230,-205.90980276,0.00023561,2]
[402125289,1768531854239,-524.13,0.00023561,2]
[402125291,1768531854249,-224.46950359,0.00023562,5]
[402125375,1768531855159,-207.48264928,0.00019844,4]
[402125376,1768531855177,-42.51735072,0.00019844,4]
[402125377,1768531855186,-275.53049641,0.00023562,5]
[402125378,1768531855195,-600.0,0.00023562,2]
[402125379,1768531855204,-282.77490559,0.00023562,2]
[402125535,1768531856925,-198.478,0.00018037,2]
[402125537,1768531856940,-2000.0,0.00019475,2]
[402125539,1768531856951,-2000.0,0.00019475,2]
[402125541,1768531856960,-2000.0,0.00019475,2]
[402125543,1768531856969,-2000.0,0.00019475,2]
[402125545,1768531856979,-2000.0,0.00019475,2]
[402125547,1768531856989,-2000.0,0.00019475,2]
[402125548,1768531856999,-2000.0,0.00019475,2]
[402125550,1768531857008,-2000.0,0.00019475,2]
[402125552,1768531857017,-2000.0,0.00019475,2]
[402125554,1768531857026,-2000.0,0.00019475,2]
[402125556,1768531857035,-2000.0,0.00019475,2]
[402125558,1768531857044,-2000.0,0.00019475,2]
[402125560,1768531857054,-2000.0,0.00019475,2]
[402125562,1768531857063,-2000.0,0.00019475,2]
[402125564,1768531857072,-990.05065537,0.00019475,2]
[402126164,1768532276126,-300.0,9.694e-05,2]
[402126165,1768532276146,-500.0,9.694e-05,2]
[402126166,1768532276166,-200.0,9.694e-05,2]
[402126167,1768532277544,-300.0,9.694e-05,2]
[402126168,1768532277567,-700.0,9.694e-05,2]
[402126169,1768532278738,-34.55391322,9.694e-05,2]
[402126170,1768532278759,-734.55391322,9.694e-05,2]
[402126171,1768532278779,-230.89217356,9.694e-05,2]
[402126172,1768532279731,-503.66173966,9.694e-05,2]
[402126173,1768532279753,-496.33826034,9.694e-05,2]
[402126174,1768532280853,-238.21565288,9.694e-05,2]
[402126175,1768532280873,-734.55391322,9.694e-05,2]
[402126176,1768532280894,-27.2304339,9.694e-05,2]
[402126178,1768532282359,-707.32347932,9.694e-05,2]
[402126179,1768532282382,-292.67652068,9.694e-05,2]
[402126180,1768532283674,-441.87739254,9.694e-05,2]
[402126181,1768532283697,-558.12260746,9.694e-05,2]
[402126182,1768532284927,-176.43130576,9.694e-05,2]
[402126183,1768532284951,-734.55391322,9.694e-05,2]
[402126184,1768532284972,-89.01478102,9.694e-05,2]
[402126185,1768532287388,-645.5391322,9.694e-05,2]
[402126186,1768532287409,-354.4608678,9.694e-05,2]
[402126187,1768532289119,-380.09304542,9.694e-05,2]
[402126188,1768532289142,-619.90695458,9.694e-05,2]
[402126189,1768532290403,-114.64695864,9.694e-05,2]
[402126190,1768532290424,-734.55391322,9.694e-05,2]
[402126191,1768532290444,-150.79912814,9.694e-05,2]
[402126192,1768532291605,-583.75478508,9.694e-05,2]
[402126193,1768532291627,-416.24521492,9.694e-05,2]
[402126194,1768532292858,-318.3086983,9.694e-05,2]
[402126195,1768532292879,-681.6913017,9.694e-05,2]
[402126196,1768532294013,-52.86261152,9.694e-05,2]
[402126197,1768532294035,-734.55391322,9.694e-05,2]
[402126198,1768532294058,-212.58347526,9.694e-05,2]
[402126199,1768532295129,-521.97043796,9.694e-05,2]
[402126200,1768532295151,-478.02956204,9.694e-05,2]
[402126201,1768532296506,-256.52435118,9.694e-05,2]
[402126202,1768532296526,-734.55391322,9.694e-05,2]
[402126203,1768532296547,-8.9217356,9.694e-05,2]
[402126204,1768532297555,-725.63217762,9.694e-05,2]
[402126205,1768532297578,-274.36782238,9.694e-05,2]
[402126206,1768532298675,-460.18609084,9.694e-05,2]
[402126207,1768532298697,-539.81390916,9.694e-05,2]
[402126208,1768532300044,-194.74000406,9.694e-05,2]
[402126209,1768532300064,-734.55391322,9.694e-05,2]
[402126210,1768532300087,-70.70608272,9.694e-05,2]
[402126211,1768532301371,-663.8478305,9.694e-05,2]
[402126212,1768532301391,-336.1521695,9.694e-05,2]
[402126225,1768532367203,-211.22296404,9.694e-05,2]
[402126226,1768532367223,-288.77703596,9.696e-05,2]
[402126245,1768532507379,-187.12,9.503e-05,2]
[402126246,1768532507402,-178.4023011,9.503e-05,2]
[402126247,1768532507427,-32634.4776989,9.696e-05,2]
[402126268,1768532950475,6960.0,8.91e-05,2]
[402126345,1768533032576,-19840.23528755,9.594e-05,2]
[402126353,1768533032651,-377.02558219,9.594e-05,2]
[402126411,1768533038504,-919408.32162748,9.594e-05,2]
[402126413,1768533038514,-554.0,9.594e-05,2]
[402126415,1768533038523,-29067.05521313,9.693e-05,2]
[402126417,1768533038533,-227.001836,9.694e-05,2]
[402126419,1768533038542,-167.34191993,9.694e-05,2]
[402126421,1768533038551,-206.99850476,9.694e-05,2]
[402126423,1768533038561,-167.34191993,9.791e-05,2]
[402126425,1768533038570,-300.0,9.888e-05,2]
[402126427,1768533038580,-167.34191993,9.888e-05,2]
[402126428,1768533038589,-227.001836,0.00010735,2]
[402126429,1768533038599,-244.25823562,0.00011694,2]
[402126430,1768533038608,-227.001836,0.00011776,2]
[402126431,1768533038618,-155.4120109,0.00012478,2]
[402126433,1768533038628,-227.001836,0.00012817,2]
[402126435,1768533038637,-3457.93654451,0.000129,2]
[402126437,1768533038647,-3457.93654447,0.000129,2]
[402126439,1768533038656,-162.25135189,0.00013273,2]
[402126441,1768533038666,-500.18311244,0.00013273,2]
[402126443,1768533038675,-281.51796648,0.00013694,2]
[402126445,1768533038685,-1000.0,0.00013699,2]
[402126447,1768533038694,-1410.299393,0.00013699,2]
[402126449,1768533038704,-12292.2698797,0.00013699,2]
[402126451,1768533038714,-500.0,0.00013699,2]
[402126453,1768533038723,-2000.0,0.00013699,7]
[402126455,1768533038733,-46477.03708553,0.00014152,2]
[402126457,1768533038742,-1000.0,0.00014247,2]
[402126459,1768533038753,-2000.0,0.00014514,7]
[402126460,1768533038762,-848.36804497,0.00014652,2]
[402126461,1768533038778,-2009.49080268,0.00014652,2]
[402126462,1768533038801,-600.07769682,0.00014652,2]
[402126463,1768533038811,-1500.0,0.00014795,2]
[402126464,1768533038820,-1085.11057985,0.00015329,7]
[402126539,1768533041171,-482.28503844,0.00015329,7]
[402127070,1768533046523,-432.60438171,0.00015329,7]
[402127072,1768533046532,-2000.0,0.00015342,2]
[402127074,1768533046541,-9.44210162,0.00015694,2]
[402127079,1768533046577,-309.33559571,0.00015694,2]
[402127081,1768533046587,-210.64995858,0.0001588,2]
[402127083,1768533046595,-500.0,0.0001588,2]
[402127085,1768533046605,-2002.68139774,0.0001589,2]
[402127087,1768533046614,-500.0,0.00016017,2]
[402127089,1768533046623,-2000.0,0.00016144,7]
[402127091,1768533046633,-200.0,0.00016154,2]
[402127093,1768533046642,-200.0,0.00016154,2]
[402127095,1768533046651,-200.0,0.00016154,2]
[402127097,1768533046660,-200.0,0.00016154,2]
[402127099,1768533046669,-200.0,0.00016154,2]
[402127101,1768533046679,-200.0,0.00016154,2]
[402127103,1768533046687,-200.0,0.00016154,2]
[402127105,1768533046697,-200.0,0.00016154,2]
[402127107,1768533046707,-200.0,0.00016154,2]
[402127109,1768533046716,-25.66312212,0.00016154,2]
[402129972,1768533590092,-187.12045894,9.402e-05,2]
[402129973,1768533590119,-185.96745668,9.45e-05,2]
[402129974,1768533590141,-126.91208438,9.593e-05,2]
[402129975,1768533591562,-187.34177497,9.593e-05,2]
[402129976,1768533591585,-312.65822503,9.593e-05,2]
[402129977,1768533595836,-187.34177497,9.593e-05,2]
[402129978,1768533595861,-500.0,9.593e-05,2]
[402129979,1768533595885,-312.65822503,9.593e-05,2]
[402129980,1768533597173,-71.77076445,9.593e-05,2]
[402129981,1768533597198,-500.0,9.593e-05,2]
[402129982,1768533597220,-428.22923555,9.593e-05,2]
[402129983,1768533598081,-71.77076445,9.593e-05,2]
[402129984,1768533598105,-500.0,9.593e-05,2]
[402129985,1768533598129,-428.22923555,9.593e-05,2]
[402129986,1768533599546,-71.77076445,9.593e-05,2]
[402129987,1768533599570,-500.0,9.593e-05,2]
[402129988,1768533599593,-428.22923555,9.593e-05,2]
[402129989,1768533600321,-71.77076445,9.593e-05,2]
[402129990,1768533600345,-500.0,9.593e-05,2]
[402129991,1768533600369,-428.22923555,9.593e-05,2]
[402129992,1768533600443,-71.77076445,9.593e-05,2]
[402129993,1768533600466,-500.0,9.593e-05,2]
[402129994,1768533600492,-428.22923555,9.593e-05,2]
[402129995,1768533602099,-71.77076445,9.593e-05,2]
[402129996,1768533602124,-500.0,9.593e-05,2]
[402129997,1768533602644,-428.22923555,9.593e-05,2]
[402129998,1768533602771,-71.77076445,9.593e-05,2]
[402129999,1768533602793,-500.0,9.593e-05,2]
[402130000,1768533602816,-428.22923555,9.593e-05,2]
[402130001,1768533602889,-71.77076445,9.593e-05,2]
[402130002,1768533602911,-500.0,9.593e-05,2]
[402130003,1768533602934,-428.22923555,9.593e-05,2]
[402130004,1768533603134,-71.77076445,9.593e-05,2]
[402130005,1768533603158,-500.0,9.593e-05,2]
[402130006,1768533603181,-428.22923555,9.593e-05,2]
[402130007,1768533604831,-71.77076445,9.593e-05,2]
[402130008,1768533604854,-500.0,9.593e-05,2]
[402130009,1768533604877,-428.22923555,9.593e-05,2]
[402130010,1768533605789,-71.77076445,9.593e-05,2]
[402130011,1768533605813,-500.0,9.593e-05,2]
[402130012,1768533605836,-428.22923555,9.593e-05,2]
[402130013,1768533605923,-71.77076445,9.593e-05,2]
[402130014,1768533605946,-500.0,9.593e-05,2]
[402130015,1768533605970,-428.22923555,9.593e-05,2]
[402130016,1768533606395,-71.77076445,9.593e-05,2]
[402130017,1768533606420,-500.0,9.593e-05,2]
[402130018,1768533606445,-428.22923555,9.593e-05,2]
[402130019,1768533606829,-71.77076445,9.593e-05,2]
[402130020,1768533606851,-500.0,9.593e-05,2]
[402130021,1768533606872,-428.22923555,9.593e-05,2]
[402130022,1768533608713,-71.77076445,9.593e-05,2]
[402130023,1768533608735,-500.0,9.593e-05,2]
[402130024,1768533608758,-428.22923555,9.593e-05,2]
[402130025,1768533610035,-71.77076445,9.593e-05,2]
[402130026,1768533610058,-500.0,9.593e-05,2]
[402130027,1768533610078,-428.22923555,9.593e-05,2]
[402130028,1768533611795,-71.77076445,9.593e-05,2]
[402130029,1768533611820,-500.0,9.593e-05,2]
[402130030,1768533611843,-428.22923555,9.593e-05,2]
[402130031,1768533613310,-71.77076445,9.593e-05,2]
[402130032,1768533613335,-500.0,9.593e-05,2]
[402130033,1768533613359,-428.22923555,9.593e-05,2]
[402130094,1768534014547,10000.01,8.641e-05,2]
[402130095,1768534014568,10000.01,8.641e-05,2]
[402130096,1768534014587,3517.2104074,8.641e-05,2]
[402130149,1768534231557,-151.0,9.492e-05,2]
[402130150,1768534231567,-1200.0,9.492e-05,2]
[402130152,1768534231576,-167805.38890466,9.493e-05,2]
[402130154,1768534231587,-553.0,9.493e-05,2]
[402130156,1768534231596,-155.078,9.592e-05,2]
[402130158,1768534231605,-232.95206625,9.592e-05,2]
[402130159,1768534231614,-500.0,9.593e-05,2]
[402130161,1768534231624,-4809.90943588,9.593e-05,2]
[402130163,1768534231633,-153.82544327,9.593e-05,2]
[402130165,1768534231643,-500.0,9.593e-05,2]
[402130167,1768534231652,-500.0,9.593e-05,2]
[402130168,1768534231661,-500.0,9.593e-05,2]
[402130170,1768534231670,-500.0,9.593e-05,2]
[402130172,1768534231679,-500.0,9.593e-05,2]
[402130174,1768534231688,-500.0,9.593e-05,2]
[402130176,1768534231697,-500.0,9.593e-05,2]
[402130177,1768534231706,-500.0,9.593e-05,2]
[402130179,1768534231715,-500.0,9.593e-05,2]
[402130181,1768534231724,-500.0,9.593e-05,2]
[402130183,1768534231734,-500.0,9.593e-05,2]
[402130185,1768534231743,-500.0,9.593e-05,2]
[402130186,1768534231752,-500.0,9.593e-05,2]
[402130188,1768534231761,-500.0,9.593e-05,2]
[402130190,1768534231770,-500.0,9.593e-05,2]
[402130192,1768534231779,-500.0,9.593e-05,2]
[402130194,1768534231789,-500.0,9.593e-05,2]
[402130195,1768534231799,-500.0,9.593e-05,2]
[402130197,1768534231808,-500.0,9.593e-05,2]
[402130199,1768534231817,-500.0,9.593e-05,2]
[402130200,1768534231826,-500.0,9.593e-05,2]
[402130202,1768534231836,-500.0,9.593e-05,2]
[402130203,1768534231845,-500.0,9.593e-05,2]
[402130204,1768534231856,-500.0,9.593e-05,2]
[402130205,1768534231866,-500.0,9.593e-05,2]
[402130207,1768534231875,-500.0,9.593e-05,2]
[402130209,1768534231884,-500.0,9.593e-05,2]
[402130210,1768534231895,-500.0,9.593e-05,2]
[402130212,1768534231905,-581.68484503,9.593e-05,2]
[402130214,1768534231914,-500.0,9.593e-05,2]
[402130216,1768534231923,-500.0,9.593e-05,2]
[402130218,1768534231934,-500.0,9.593e-05,2]
[402130219,1768534231943,-500.0,9.593e-05,2]
[402130221,1768534231952,-500.0,9.593e-05,2]
[402130223,1768534231961,-500.0,9.593e-05,2]
[402130225,1768534231970,-500.0,9.593e-05,2]
[402130226,1768534231979,-500.0,9.593e-05,2]
[402130228,1768534231988,-500.0,9.593e-05,2]
[402130230,1768534231998,-500.0,9.593e-05,2]
[402130231,1768534232006,-500.0,9.593e-05,2]
[402130233,1768534232015,-500.0,9.593e-05,2]
[402130235,1768534232025,-500.0,9.593e-05,2]
[402130236,1768534232034,-500.0,9.593e-05,2]
[402130237,1768534232044,-500.0,9.593e-05,2]
[402130238,1768534232053,-500.0,9.593e-05,2]
[402130240,1768534232063,-500.0,9.593e-05,2]
[402130242,1768534232072,-500.0,9.593e-05,2]
[402130244,1768534232081,-500.0,9.593e-05,2]
[402130246,1768534232090,-500.0,9.593e-05,2]
[402130247,1768534232099,-500.0,9.593e-05,2]
[402130249,1768534232108,-500.0,9.593e-05,2]
[402130251,1768534232118,-500.0,9.593e-05,2]
[402130253,1768534232127,-500.0,9.593e-05,2]
[402130254,1768534232136,-500.0,9.593e-05,2]
[402130256,1768534232146,-500.0,9.593e-05,2]
[402130258,1768534232155,-500.0,9.593e-05,2]
[402130260,1768534232164,-500.0,9.593e-05,2]
[402130262,1768534232173,-500.0,9.593e-05,2]
[402130264,1768534232182,-500.0,9.593e-05,2]
[402130265,1768534232191,-500.0,9.593e-05,2]
[402130267,1768534232201,-500.0,9.593e-05,2]
[402130269,1768534232211,-500.0,9.593e-05,2]
[402130271,1768534232219,-500.0,9.593e-05,2]
[402130273,1768534232228,-500.0,9.593e-05,2]
[402130274,1768534232238,-500.0,9.593e-05,2]
[402130276,1768534232248,-500.0,9.593e-05,2]
[402130278,1768534232257,-500.0,9.593e-05,2]
[402130280,1768534232266,-500.0,9.593e-05,2]
[402130282,1768534232276,-500.0,9.593e-05,2]
[402130284,1768534232285,-500.0,9.593e-05,2]
[402130285,1768534232295,-500.0,9.593e-05,2]
[402130287,1768534232305,-500.0,9.593e-05,2]
[402130289,1768534232314,-500.0,9.593e-05,2]
[402130291,1768534232324,-500.0,9.593e-05,2]
[402130293,1768534232334,-500.0,9.593e-05,2]
[402130295,1768534232344,-389.85522095,9.593e-05,2]
[402130296,1768534232354,-500.0,9.593e-05,2]
[402130298,1768534232365,-500.0,9.593e-05,2]
[402130300,1768534232375,-500.0,9.593e-05,2]
[402130302,1768534232384,-500.0,9.593e-05,2]
[402130304,1768534232393,-500.0,9.593e-05,2]
[402130306,1768534232402,-500.0,9.593e-05,2]
[402130307,1768534232411,-500.0,9.593e-05,2]
[402130309,1768534232420,-500.0,9.593e-05,2]
[402130311,1768534232429,-500.0,9.593e-05,2]
[402130313,1768534232438,-500.0,9.593e-05,2]
[402130315,1768534232447,-500.0,9.593e-05,2]
[402130316,1768534232456,-500.0,9.593e-05,2]
[402130318,1768534232465,-500.0,9.593e-05,2]
[402130320,1768534232475,-500.0,9.593e-05,2]
[402130322,1768534232484,-500.0,9.593e-05,2]
[402130324,1768534232499,-500.0,9.593e-05,2]
[402130326,1768534232508,-500.0,9.593e-05,2]
[402130328,1768534232517,-500.0,9.593e-05,2]
[402130329,1768534232526,-500.0,9.593e-05,2]
[402130331,1768534232535,-500.0,9.593e-05,2]
[402130333,1768534232545,-500.0,9.593e-05,2]
[402130335,1768534232555,-500.0,9.593e-05,2]
[402130337,1768534232564,-500.0,9.593e-05,2]
[402130338,1768534232573,-500.0,9.593e-05,2]
[402130340,1768534232583,-500.0,9.593e-05,2]
[402130342,1768534232593,-500.0,9.593e-05,2]
[402130343,1768534232602,-500.0,9.593e-05,2]
[402130344,1768534232611,-500.0,9.593e-05,2]
[402130345,1768534232620,-550.0,9.593e-05,2]
[402130346,1768534232630,-500.0,9.593e-05,2]
[402130347,1768534232639,-500.0,9.593e-05,2]
[402130348,1768534232648,-544.66614286,9.593e-05,2]
[402130349,1768534232658,-544.66614286,9.593e-05,2]
[402130350,1768534232667,-544.66614286,9.593e-05,2]
[402130351,1768534232677,-544.66614286,9.593e-05,2]
[402130352,1768534232686,-544.66614286,9.593e-05,2]
[402130353,1768534232697,-544.66614286,9.593e-05,2]
[402130354,1768534232707,-544.66614286,9.593e-05,2]
[402130355,1768534232716,-544.66614286,9.593e-05,2]
[402130356,1768534232726,-544.66614286,9.593e-05,2]
[402130357,1768534232736,-544.66614286,9.593e-05,2]
[402130358,1768534232746,-544.66614286,9.593e-05,2]
[402130359,1768534232756,-544.66614286,9.593e-05,2]
[402130360,1768534232765,-544.66614286,9.593e-05,2]
[402130361,1768534232774,-544.66614286,9.593e-05,2]
[402130362,1768534232784,-544.66614286,9.593e-05,2]
[402130363,1768534232794,-544.66614286,9.593e-05,2]
[402130364,1768534232804,-544.66614286,9.593e-05,2]
[402130365,1768534232813,-544.66614286,9.593e-05,2]
[402130366,1768534232823,-544.66614286,9.593e-05,2]
[402130367,1768534232832,-544.66614286,9.593e-05,2]
[402130368,1768534232842,-544.66614286,9.593e-05,2]
[402130369,1768534232852,-544.66614286,9.593e-05,2]
[402130370,1768534232865,-544.66614286,9.593e-05,2]
[402130371,1768534232874,-544.66614286,9.593e-05,2]
[402130372,1768534232884,-544.66614286,9.593e-05,2]
[402130373,1768534232895,-544.66614286,9.593e-05,2]
[402130374,1768534232905,-544.66614286,9.593e-05,2]
[402130375,1768534232914,-544.66614286,9.593e-05,2]
[402130376,1768534232923,-544.66614286,9.593e-05,2]
[402130377,1768534232933,-544.66614286,9.593e-05,2]
[402130378,1768534232943,-544.66614286,9.593e-05,2]
[402130379,1768534232952,-544.66614286,9.593e-05,2]
[402130380,1768534232962,-544.66614286,9.593e-05,2]
[402130381,1768534232972,-544.66614286,9.593e-05,2]
[402130382,1768534232981,-544.66614286,9.593e-05,2]
[402130383,1768534232991,-544.66614286,9.593e-05,2]
[402130384,1768534233000,-544.66614286,9.593e-05,2]
[402130385,1768534233010,-544.66614286,9.593e-05,2]
[402130386,1768534233020,-500.0,9.593e-05,2]
[402130387,1768534233030,-544.66614286,9.593e-05,2]
[402130388,1768534233039,-500.0,9.593e-05,2]
[402130389,1768534233049,-544.66614286,9.593e-05,2]
[402130390,1768534233059,-544.66614286,9.593e-05,2]
[402130391,1768534233069,-550.0,9.593e-05,2]
[402130392,1768534233080,-544.66614286,9.593e-05,2]
[402130393,1768534233090,-500.0,9.593e-05,2]
[402130394,1768534233100,-544.66614286,9.593e-05,2]
[402130395,1768534233109,-544.66614286,9.593e-05,2]
[402130396,1768534233119,-500.0,9.593e-05,2]
[402130397,1768534233129,-544.66614286,9.593e-05,2]
[402130398,1768534233138,-500.0,9.593e-05,2]
[402130399,1768534233147,-544.66614286,9.593e-05,2]
[402130400,1768534233157,-500.0,9.593e-05,2]
[402130401,1768534233167,-544.66614286,9.593e-05,2]
[402130402,1768534233177,-544.66614286,9.593e-05,2]
[402130403,1768534233187,-500.0,9.593e-05,2]
[402130404,1768534233196,-544.66614286,9.593e-05,2]
[402130405,1768534233206,-544.66614286,9.593e-05,2]
[402130406,1768534233216,-544.66614286,9.593e-05,2]
[402130407,1768534233226,-544.66614286,9.593e-05,2]
[402130408,1768534233236,-544.66614286,9.593e-05,2]
[402130409,1768534233246,-544.66614286,9.593e-05,2]
[402130410,1768534233255,-544.66614286,9.593e-05,2]
[402130411,1768534233264,-544.66614286,9.593e-05,2]
[402130412,1768534233274,-544.66614286,9.593e-05,2]
[402130413,1768534233283,-544.66614286,9.593e-05,2]
[402130414,1768534233292,-544.66614286,9.593e-05,2]
[402130415,1768534233302,-544.66614286,9.593e-05,2]
[402130416,1768534233314,-544.66614286,9.593e-05,2]
[402130417,1768534233323,-500.0,9.593e-05,2]
[402130418,1768534233333,-500.0,9.593e-05,2]
[402130419,1768534233343,-500.0,9.593e-05,2]
[402130420,1768534233352,-500.0,9.593e-05,2]
[402130421,1768534233361,-500.0,9.593e-05,2]
[402130422,1768534233370,-187.41381278,9.593e-05,2]
[402130423,1768534233379,-500.0,9.593e-05,2]
[402130424,1768534233388,-500.0,9.593e-05,2]
[402130425,1768534233398,-500.0,9.593e-05,2]
[402130426,1768534233407,-526.51060478,9.593e-05,2]
[402130427,1768534233416,-526.51060478,9.593e-05,2]
[402130428,1768534233426,-526.51060478,9.593e-05,2]
[402130429,1768534233436,-526.51060478,9.593e-05,2]
[402130430,1768534233445,-526.51060478,9.593e-05,2]
[402130431,1768534233454,-526.51060478,9.593e-05,2]
[402130432,1768534233463,-526.51060478,9.593e-05,2]
[402130433,1768534233473,-526.51060478,9.593e-05,2]
[402130434,1768534233482,-526.51060478,9.593e-05,2]
[402130435,1768534233499,-526.51060478,9.593e-05,2]
[402130436,1768534233508,-526.51060478,9.593e-05,2]
[402130437,1768534233517,-526.51060478,9.593e-05,2]